bitfinex/quotes_ETHUSD_20241006
["timestamp","ask_amount","ask_price","bid_price","bid_amount"]
[1728172801600,0.55,2417.4,2417.1,2.0]
[1728172802867,4.97216078,2417.5,2417.1,2.0]
[1728172804132,1.42216078,2417.2,2417.1,2.0]
[1728172806459,1.42216078,2417.4,2417.1,2.0]
[1728172806667,1.64333686,2417.4,2417.1,2.0]
[1728172806982,1.42216078,2417.4,2417.1,2.0]
[1728172807190,0.7896,2417.5,2417.1,2.0]
[1728172807542,1.42216078,2417.6,2417.2,0.8246]
[1728172807543,0.55,2417.6,2417.2,0.8246]
[1728172807864,3.55,2417.6,2417.2,0.8246]
[1728172808079,2.21176078,2417.7,2417.2,0.8246]
[1728172808380,1.42216078,2417.8,2417.3,0.8246]
[1728172809358,7.43,2418.1,2417.3,0.8246]
[1728172809564,1.42216078,2418.0,2417.4,0.8246]
[1728172809885,1.42216078,2418.0,2417.5,0.28246]
[1728172810451,1.42216078,2418.0,2417.6,0.7924]
[1728172819774,1.42216078,2417.8,2417.6,0.7924]
[1728172823366,1.42216078,2418.0,2417.6,0.7924]
[1728172826720,0.55,2418.1,2417.6,0.7924]
[1728172826893,4.97216078,2418.1,2417.6,0.7924]
[1728172828423,5.54833686,2418.1,2417.6,0.7924]
[1728172830785,6.30892,2417.7,2417.6,0.7924]
[1728172835897,6.30892,2417.7,2417.6,0.7510298]
[1728172848777,3.0,2417.6,2417.4,0.7504]
[1728172849081,3.0,2417.6,2417.2,0.08272975]
[1728172849082,3.0,2417.4,2417.2,0.7504]
[1728172849460,3.0,2417.4,2417.1,2.0]
[1728172849461,3.3092,2417.5,2417.3,2.7504]
[1728172849685,3.3092,2417.5,2417.4,0.7504]
[1728172849982,3.0,2417.5,2417.4,0.7504]
[1728172852484,3.0,2417.6,2417.4,0.7504]
[1728172852647,6.3092,2417.5,2417.4,0.7504]
[1728172854184,6.3092,2417.5,2417.4,0.7090298]
[1728172862472,3.0,2417.5,2417.4,0.7090298]
[1728172862809,3.30907,2417.6,2417.4,0.7090298]
[1728172862810,6.30893,2417.7,2417.6,2.0]
[1728172867415,6.30893,2417.7,2417.4,0.7090298]
[1728172867621,6.30893,2417.7,2417.3,2.0]
[1728172867622,3.30934,2417.4,2417.3,2.0]
[1728172867821,7.046724,2417.4,2417.3,2.0]
[1728172868119,6.30934,2417.4,2417.3,2.0]
[1728172870499,3.3092,2417.5,2417.1,2.0]
[1728172870500,6.30961,2417.2,2417.1,2.0]
[1728172871835,6.30961,2417.2,2417.1,1.9421266]
[1728172872410,6.30961,2417.2,2417.1,1.8812955]
[1728172872811,6.30961,2417.2,2417.0,2.0]
[1728172873010,3.30975,2417.1,2417.0,2.0]
[1728172874000,3.30975,2417.1,2417.0,3.9632]
[1728172875934,7.48980208,2417.1,2417.0,3.9632]
[1728172878054,7.48980208,2417.1,2417.0,1.9632]
[1728172882010,7.40593952,2417.1,2417.0,1.9632]
[1728172883401,6.22588744,2417.1,2417.0,1.9632]
[1728172886372,3.0,2417.1,2417.0,1.9632]
[1728172886681,3.0,2417.1,2417.0,4.7313]
[1728172890319,3.0,2417.1,2417.0,4.6774563]
[1728172890831,3.0,2417.1,2417.0,4.6232414]
[1728172891302,3.0,2417.1,2417.0,2.7681]
[1728172892528,3.0,2417.1,2417.0,4.6233]
[1728172893836,3.30948,2417.3,2417.0,5.09390427]
[1728172893982,3.0,2417.2,2417.0,5.17664118]
[1728172894684,3.0,2417.2,2417.0,5.09390427]
[1728172895088,3.0,2417.2,2417.0,5.17664286]
[1728172896114,3.0,2417.2,2417.0,5.09390427]
[1728172897417,3.0,2417.2,2417.0,4.6233]
[1728172899822,3.30963,2417.2,2417.0,4.6233]
[1728172902115,3.30975,2417.1,2417.0,1.8552]
[1728172902445,4.14095,2417.1,2417.0,1.8552]
[1728172902624,7.14095,2417.1,2417.0,1.8552]
[1728172903127,8.32822408,2417.1,2417.0,1.8552]
[1728172903839,7.49702408,2417.1,2417.0,1.8552]
[1728172904012,6.30975,2417.1,2417.0,1.8552]
[1728172907631,3.0,2417.1,2417.0,1.8552]
[1728172910044,6.30975,2417.1,2417.0,1.8552]
[1728172916439,3.0,2417.1,2417.0,1.8552]
[1728172916651,3.0,2417.2,2417.1,2.0]
[1728172921957,8.2095,2417.9,2417.5,0.7953]
[1728172922264,3.3086,2418.0,2417.7,2.0]
[1728172922962,3.30867,2417.9,2417.7,2.0]
[1728172923423,3.0,2417.9,2417.7,2.0]
[1728172923617,3.30839,2418.1,2417.8,0.7953]
[1728172924227,3.30852,2418.0,2417.8,0.7953]
[1728172924433,3.30852,2418.0,2417.7,2.0]
[1728172924434,3.30865,2417.9,2417.7,2.0]
[1728172925162,4.08815,2417.9,2417.7,2.0]
[1728172925724,6.30879,2417.8,2417.7,2.0]
[1728172925963,7.49070008,2417.8,2417.7,2.0]
[1728172926350,6.30879,2417.8,2417.7,2.0]
[1728172926522,3.0,2417.8,2417.7,2.0]
[1728172927245,6.30879,2417.8,2417.7,2.0]
[1728172934877,7.08289,2417.8,2417.7,2.0]
[1728172940530,3.30906,2417.6,2417.4,2.0]
[1728172940821,3.0,2417.5,2417.4,2.0]
[1728172941044,3.0,2417.5,2417.1,2.0]
[1728172941045,3.30956,2417.3,2417.1,2.0]
[1728172941191,7.14075,2417.1,2417.0,1.8552]
[1728172941421,9.17800208,2417.1,2417.0,1.8552]
[1728172942747,9.17800208,2417.1,2415.7,0.64799505]
[1728172942748,3.31139,2415.9,2415.7,1.52420762]
[1728172942950,3.31116,2416.1,2415.6,2.0]
[1728172944351,6.31092,2416.3,2415.6,2.0]
[1728172944352,6.31092,2416.3,2415.9,2.0]
[1728172945010,3.3112,2416.1,2415.9,2.0]
[1728172948915,3.0,2416.0,2415.7,0.7753]
[1728172949116,3.0,2416.0,2415.6,2.0]
[1728172949117,3.31147,2415.9,2415.6,2.0]
[1728172949352,3.0,2415.8,2415.6,2.0]
[1728172949855,6.31162,2415.8,2415.6,2.0]
[1728172950219,3.0,2415.8,2415.6,2.0]
[1728172952151,6.31153,2415.8,2415.6,2.0]
[1728172954155,3.0,2415.8,2415.6,2.0]
[1728172954945,3.831,2416.0,2415.6,2.0]
[1728172955162,3.0,2416.2,2415.7,0.7545]
[1728172956141,3.0,2416.2,2415.7,4.06614]
[1728172956355,6.311,2416.2,2415.7,0.7545]
[1728172959177,3.0,2416.2,2415.7,0.7545]
[1728172959343,3.0,2416.0,2415.7,0.7545]
[1728172963577,6.31139,2416.0,2415.7,0.7545]
[1728172965939,6.31139,2416.0,2415.6,2.772]
[1728172967357,3.3114,2415.9,2415.6,2.772]
[1728172968648,3.31195,2415.5,2415.3,2.0]
[1728172971504,6.62401,2415.5,2415.3,2.0]
[1728172971713,3.31195,2415.5,2415.3,2.0]
[1728172972213,6.62402,2415.5,2415.3,2.0]
[1728172972504,3.31195,2415.5,2415.3,2.0]
[1728172974338,3.31195,2415.5,2415.0,3.42235728]
[1728172974613,3.31231,2415.3,2415.1,0.52355031]
[1728172974917,6.31231,2415.3,2415.2,0.52357647]
[1728172975153,6.31231,2415.3,2415.1,0.52359548]
[1728172975409,6.31231,2415.3,2415.0,2.0]
[1728172975410,3.31235,2415.2,2415.0,2.0]
[1728172975611,3.31235,2415.2,2415.1,0.52350382]
[1728172976477,3.31235,2415.2,2415.0,2.0]
[1728172977918,6.62478,2415.2,2415.0,2.0]
[1728172978272,3.31249,2415.1,2415.0,2.0]
[1728172978580,3.31235,2415.2,2415.0,2.0]
[1728172978798,3.31249,2415.1,2415.0,2.0]
[1728172979026,3.31298,2414.8,2414.7,0.52317032]
[1728172979231,3.31304,2414.7,2414.6,2.52294045]
[1728172979502,3.31304,2414.7,2414.6,2.0]
[1728172979709,3.31304,2414.7,2414.5,0.52295995]
[1728172979710,3.31317,2414.6,2414.5,0.52295995]
[1728172979924,3.31317,2414.6,2414.4,0.52295995]
[1728172980127,9.62617,2414.7,2414.4,0.52295995]
[1728172980443,6.31304,2414.7,2414.4,0.52295995]
[1728172981034,6.31304,2414.7,2414.4,0.52295186]
[1728172981418,6.31304,2414.7,2414.3,3.94530914]
[1728172981597,0.7584,2414.6,2414.3,2.52295186]
[1728172981797,0.7584,2414.6,2414.3,2.0]
[1728172981998,3.7584,2414.6,2414.3,2.0]
[1728172982235,3.31344,2414.5,2414.3,2.0]
[1728172983315,3.7584,2414.6,2414.3,2.0]
[1728172983639,6.31292,2414.8,2414.3,2.613834]
[1728172985039,3.3134,2414.5,2414.3,2.0]
[1728172985221,3.31345,2414.4,2414.3,2.0]
[1728172988326,6.31345,2414.4,2414.3,2.0]
[1728172989931,7.07185,2414.4,2414.3,2.0]
[1728172990510,8.110375,2414.4,2414.3,2.0]
[1728172997353,3.7564,2414.0,2413.7,2.8245]
[1728172997539,3.0,2413.8,2413.7,2.8245]
[1728173000258,6.31427,2413.8,2413.7,2.0]
[1728173002625,6.31427,2413.8,2413.4,2.0]
[1728173002626,3.31455,2413.6,2413.4,2.0]
[1728173002830,6.31468,2413.5,2413.4,2.0]
[1728173003841,6.31468,2413.5,2413.1,2.0]
[1728173003842,3.0,2413.4,2413.1,2.0]
[1728173004043,6.3151,2413.2,2413.1,2.0]
[1728173005730,6.31496,2413.3,2413.1,2.0]
[1728173006266,6.31497,2413.3,2413.1,2.0]
[1728173012283,3.7572,2413.3,2413.1,2.0]
[1728173012472,6.3151,2413.2,2413.1,2.0]
[1728173014551,14.0851,2413.2,2413.1,2.0]
[1728173016687,21.8551,2413.2,2413.1,2.0]
[1728173018586,3.31538,2413.0,2412.8,2.9021833]
[1728173018796,3.31551,2412.9,2412.8,2.9021833]
[1728173019104,6.63085,2413.0,2412.8,2.9021833]
[1728173019259,3.31538,2413.0,2412.8,2.9021833]
[1728173019460,6.31551,2412.9,2412.8,2.1059833]
[1728173020150,8.17837165,2412.9,2412.8,0.1059833]
[1728173020351,9.60409811,2412.9,2412.8,0.1059833]
[1728173020583,10.15409811,2412.9,2412.8,0.1059833]
[1728173020796,15.94837165,2412.9,2412.8,0.1059833]
[1728173022368,17.37409811,2412.9,2412.8,0.1059833]
[1728173023093,25.14409811,2412.9,2412.8,0.1059833]
[1728173023694,23.71837165,2412.9,2412.8,0.1059833]
[1728173025003,31.48837165,2412.9,2412.8,0.1059833]
[1728173027090,39.25837165,2412.9,2412.8,0.1059833]
[1728173029307,47.02837165,2412.9,2412.8,0.1059833]
[1728173031384,54.79837165,2412.9,2412.8,0.1059833]
[1728173033477,62.56837165,2412.9,2412.8,0.1059833]
[1728173035605,70.33837165,2412.9,2412.8,0.1059833]
[1728173038517,78.10837165,2412.9,2412.8,0.1059833]
[1728173039175,76.24551,2412.9,2412.8,0.1059833]
[1728173040678,84.01551,2412.9,2412.8,0.1059833]
[1728173041109,80.7,2412.9,2412.8,0.1059833]
[1728173041577,84.01551,2412.9,2412.8,0.1059833]
[1728173043015,91.78551,2412.9,2412.8,0.1059833]
[1728173043638,88.47,2412.9,2412.8,0.1059833]
[1728173043925,88.47,2412.9,2412.8,1.20345118]
[1728173043926,85.47,2412.9,2412.8,1.20345118]
[1728173044291,88.78551,2412.9,2412.8,0.1059833]
[1728173045116,96.55551,2412.9,2412.8,0.1059833]
[1728173045317,93.24,2412.9,2412.8,0.1059833]
[1728173045490,99.55551,2412.9,2412.8,0.1059833]
[1728173047143,107.32551,2412.9,2412.8,0.1059833]
[1728173049350,115.09551,2412.9,2412.8,0.1059833]
[1728173051339,122.86551,2412.9,2412.8,0.1059833]
[1728173053442,130.63551,2412.9,2412.8,0.1059833]
[1728173053628,137.49204388,2412.9,2412.8,0.1059833]
[1728173054056,146.27741988,2412.9,2412.8,0.1059833]
[1728173054772,135.51613025,2412.9,2412.8,0.1059833]
[1728173055568,143.28613025,2412.9,2412.8,0.1059833]
[1728173057661,151.05613025,2412.9,2412.8,0.1059833]
[1728173059464,146.96121,2412.9,2412.8,0.1059833]
[1728173059975,154.73121,2412.9,2412.8,0.1059833]
[1728173060481,155.28121,2412.9,2412.8,0.1059833]
[1728173062080,163.05121,2412.9,2412.8,0.1059833]
[1728173064239,170.82121,2412.9,2412.8,0.1059833]
[1728173064444,174.91613025,2412.9,2412.8,0.1059833]
[1728173066381,182.68613025,2412.9,2412.8,0.1059833]
[1728173068444,190.45613025,2412.9,2412.8,0.1059833]
[1728173070760,198.22613025,2412.9,2412.8,0.1059833]
[1728173072755,205.99613025,2412.9,2412.8,0.1059833]
[1728173075090,213.76613025,2412.9,2412.8,0.1059833]
[1728173077055,221.53613025,2412.9,2412.8,0.1059833]
[1728173079280,229.30613025,2412.9,2412.8,0.1059833]
[1728173079599,230.73287527,2412.9,2412.8,0.1059833]
[1728173081592,238.50287527,2412.9,2412.8,0.1059833]
[1728173082970,237.07613025,2412.9,2412.8,0.1059833]
[1728173083687,244.06043025,2412.9,2412.8,0.1059833]
[1728173085655,251.83043025,2412.9,2412.8,0.1059833]
[1728173087763,259.60043025,2412.9,2412.8,0.1059833]
[1728173089886,259.72551,2412.9,2412.8,0.1059833]
[1728173091130,262.72551,2412.9,2412.8,0.1059833]
[1728173091785,264.15225502,2412.9,2412.8,0.1059833]
[1728173092022,271.92225502,2412.9,2412.8,0.1059833]
[1728173094206,279.69225502,2412.9,2412.8,0.1059833]
[1728173096531,287.46225502,2412.9,2412.8,0.1059833]
[1728173098544,295.23225502,2412.9,2412.8,0.1059833]
[1728173100603,303.00225502,2412.9,2412.8,0.1059833]
[1728173102408,307.09717527,2412.9,2412.8,0.1059833]
[1728173103647,314.86717527,2412.9,2412.8,0.1059833]
[1728173104647,309.34551,2412.9,2412.8,0.1059833]
[1728173105919,317.11551,2412.9,2412.8,0.1059833]
[1728173107958,324.88551,2412.9,2412.8,0.1059833]
[1728173110061,332.65551,2412.9,2412.8,0.1059833]
[1728173110881,334.08225502,2412.9,2412.8,0.1059833]
[1728173111037,338.17717527,2412.9,2412.8,0.1059833]
[1728173111838,338.95267527,2412.9,2412.8,0.1059833]
[1728173112356,346.72267527,2412.9,2412.8,0.1059833]
[1728173113536,352.05315627,2412.9,2412.8,0.1059833]
[1728173113879,349.92577527,2412.9,2412.8,0.1059833]
[1728173114533,357.69577527,2412.9,2412.8,0.1059833]
[1728173117051,365.46577527,2412.9,2412.8,0.1059833]
[1728173119178,373.23577527,2412.9,2412.8,0.1059833]
[1728173121166,370.58267527,2412.9,2412.8,0.1059833]
[1728173121361,381.60352427,2412.9,2412.8,0.1059833]
[1728173123408,389.37352427,2412.9,2412.8,0.1059833]
[1728173124010,388.62662727,2412.9,2412.8,0.1059833]
[1728173125037,386.12267527,2412.9,2412.8,0.1059833]
[1728173125524,393.89267527,2412.9,2412.8,0.1059833]
[1728173127603,401.66267527,2412.9,2412.8,0.1059833]
[1728173129910,409.43267527,2412.9,2412.8,0.1059833]
[1728173132099,417.20267527,2412.9,2412.8,0.1059833]
[1728173133028,424.46403127,2412.9,2412.8,0.1059833]
[1728173133806,423.73670827,2412.9,2412.8,0.1059833]
[1728173134216,431.50670827,2412.9,2412.8,0.1059833]
[1728173136535,439.27670827,2412.9,2412.8,0.1059833]
[1728173139213,447.04670827,2412.9,2412.8,0.1059833]
[1728173140210,440.51267527,2412.9,2412.8,0.1059833]
[1728173141381,448.28267527,2412.9,2412.8,0.1059833]
[1728173143593,456.05267527,2412.9,2412.8,0.1059833]
[1728173145634,463.82267527,2412.9,2412.8,0.1059833]
[1728173147678,471.59267527,2412.9,2412.8,0.1059833]
[1728173148819,470.81717527,2412.9,2412.8,0.1059833]
[1728173148986,466.72225502,2412.9,2412.8,0.1059833]
[1728173149617,463.17225502,2412.9,2412.8,0.1059833]
[1728173149798,470.94225502,2412.9,2412.8,0.1059833]
[1728173151226,473.94225502,2412.9,2412.8,0.1059833]
[1728173152036,481.71225502,2412.9,2412.8,0.1059833]
[1728173154554,488.05551,2412.9,2412.8,0.1059833]
[1728173154711,489.48225502,2412.9,2412.8,0.1059833]
[1728173155307,493.57717527,2412.9,2412.8,0.1059833]
[1728173155635,494.90807527,2412.9,2412.8,0.1059833]
[1728173156942,502.67807527,2412.9,2412.8,0.1059833]
[1728173158911,510.44807527,2412.9,2412.8,0.1059833]
[1728173161829,518.21807527,2412.9,2412.8,0.1059833]
[1728173164257,525.98807527,2412.9,2412.8,0.1059833]
[1728173166425,533.75807527,2412.9,2412.8,0.1059833]
[1728173168660,541.52807527,2412.9,2412.8,0.1059833]
[1728173170766,549.29807527,2412.9,2412.8,0.1059833]
[1728173173231,557.06807527,2412.9,2412.8,0.1059833]
[1728173175350,564.83807527,2412.9,2412.8,0.1059833]
[1728173177461,572.60807527,2412.9,2412.8,0.1059833]
[1728173179589,580.37807527,2412.9,2412.8,0.1059833]
[1728173181476,603.59121627,2412.9,2412.8,0.1059833]
[1728173181684,611.36121627,2412.9,2412.8,0.1059833]
[1728173182388,608.80137127,2412.9,2412.8,0.1059833]
[1728173182597,606.03004427,2412.9,2412.8,0.1059833]
[1728173183151,604.62268527,2412.9,2412.8,0.1059833]
[1728173183675,603.74718427,2412.9,2412.8,0.1059833]
[1728173183988,611.51718427,2412.9,2412.8,0.1059833]
[1728173185366,595.91807527,2412.9,2412.8,0.1059833]
[1728173185636,610.48413427,2412.9,2412.8,0.1059833]
[1728173185958,618.25413427,2412.9,2412.8,0.1059833]
[1728173186690,617.37113427,2412.9,2412.8,0.1059833]
[1728173186858,615.49551527,2412.9,2412.8,0.1059833]
[1728173187191,608.50562027,2412.9,2412.8,0.1059833]
[1728173187388,597.38551,2412.9,2412.8,0.1059833]
[1728173187558,598.81225502,2412.9,2412.8,0.1059833]
[1728173188211,606.58225502,2412.9,2412.8,0.1059833]
[1728173190626,614.35225502,2412.9,2412.8,0.1059833]
[1728173192693,622.12225502,2412.9,2412.8,0.1059833]
[1728173192896,626.21717527,2412.9,2412.8,0.1059833]
[1728173195008,633.98717527,2412.9,2412.8,0.1059833]
[1728173196476,637.78473927,2412.9,2412.8,0.1059833]
[1728173196702,637.46514627,2412.9,2412.8,0.1059833]
[1728173197125,645.23514627,2412.9,2412.8,0.1059833]
[1728173197330,642.53947527,2412.9,2412.8,0.1059833]
[1728173197543,649.87853327,2412.9,2412.8,0.1059833]
[1728173198107,636.23551,2412.9,2412.8,0.1059833]
[1728173198445,639.91497602,2412.9,2412.8,0.1059833]
[1728173198734,637.66225502,2412.9,2412.8,0.1059833]
[1728173199320,645.43225502,2412.9,2412.8,0.1059833]
[1728173201529,653.20225502,2412.9,2412.8,0.1059833]
[1728173203741,663.83332518,2412.9,2412.8,0.1059833]
[1728173205526,661.64810218,2412.9,2412.8,0.1059833]
[1728173205727,669.41810218,2412.9,2412.8,0.1059833]
[1728173206037,671.64582518,2412.9,2412.8,0.1059833]
[1728173207923,679.41582518,2412.9,2412.8,0.1059833]
[1728173210357,687.18582518,2412.9,2412.8,0.1059833]
[1728173212659,692.72810218,2412.9,2412.8,0.1059833]
[1728173213453,692.05225502,2412.9,2412.8,0.1059833]
[1728173214956,699.82225502,2412.9,2412.8,0.1059833]
[1728173217494,707.59225502,2412.9,2412.8,0.1059833]
[1728173219812,715.36225502,2412.9,2412.8,0.1059833]
[1728173221890,723.13225502,2412.9,2412.8,0.1059833]
[1728173223913,730.90225502,2412.9,2412.8,0.1059833]
[1728173225820,728.92551,2412.9,2412.8,0.1059833]
[1728173226187,733.69551,2412.9,2412.8,0.1059833]
[1728173227422,736.69551,2412.9,2412.8,0.1059833]
[1728173228487,744.46551,2412.9,2412.8,0.1059833]
[1728173230744,752.23551,2412.9,2412.8,0.1059833]
[1728173232792,760.73659126,2412.9,2412.8,0.1059833]
[1728173232991,761.28659126,2412.9,2412.8,0.1059833]
[1728173234933,769.05659126,2412.9,2412.8,0.1059833]
[1728173237140,776.82659126,2412.9,2412.8,0.1059833]
[1728173239347,784.59659126,2412.9,2412.8,0.1059833]
[1728173240834,785.41299126,2412.9,2412.8,0.1059833]
[1728173241408,793.18299126,2412.9,2412.8,0.1059833]
[1728173243436,800.95299126,2412.9,2412.8,0.1059833]
[1728173245885,808.72299126,2412.9,2412.8,0.1059833]
[1728173248053,816.49299126,2412.9,2412.8,0.1059833]
[1728173250171,824.26299126,2412.9,2412.8,0.1059833]
[1728173252357,832.03299126,2412.9,2412.8,0.1059833]
[1728173253801,838.03534151,2412.9,2412.8,0.1059833]
[1728173254091,838.03534151,2412.9,2412.0,0.7718]
[1728173254092,6.31661,2412.1,2412.0,0.7718]
[1728173256584,14.08661,2412.1,2412.0,0.7718]
[1728173258547,21.85661,2412.1,2412.0,0.7718]
[1728173260817,29.62661,2412.1,2412.0,0.7718]
[1728173262886,37.39661,2412.1,2412.0,0.7718]
[1728173264212,41.49153025,2412.1,2412.0,0.7718]
[1728173264412,41.49153025,2412.1,2411.5,0.7718]
[1728173264413,3.31729,2411.6,2411.5,0.7718]
[1728173264593,3.31729,2411.6,2411.1,2.0]
[1728173264594,3.31758,2411.4,2411.3,0.7718]
[1728173264797,6.31758,2411.4,2411.3,0.7718]
[1728173267105,14.08758,2411.4,2411.3,0.7718]
[1728173268612,10.77,2411.4,2411.3,0.27718]
[1728173268767,14.08757,2411.4,2411.3,0.7718]
[1728173269172,21.85757,2411.4,2411.3,0.7718]
[1728173271404,29.62757,2411.4,2411.3,0.7718]
[1728173273521,37.39757,2411.4,2411.3,0.7718]
[1728173276016,3.31785,2411.2,2411.1,2.7995]
[1728173276255,6.31785,2411.2,2411.1,2.7995]
[1728173278545,14.08785,2411.2,2411.1,2.7995]
[1728173280733,21.85785,2411.2,2411.1,2.7995]
[1728173283142,26.31,2411.2,2411.1,3.07945]
[1728173283444,23.31,2411.2,2411.1,4.50619502]
[1728173285414,31.08,2411.2,2411.1,4.50619502]
[1728173285614,31.08,2411.2,2411.1,3.07945]
[1728173287619,38.85,2411.2,2411.1,3.07945]
[1728173289956,46.62,2411.2,2411.1,3.07945]
[1728173291934,54.39,2411.2,2411.1,3.07945]
[1728173292311,54.39,2411.2,2411.1,3.60414586]
[1728173293411,54.39,2411.2,2411.1,5.03089088]
[1728173294061,62.16,2411.2,2411.1,5.03089088]
[1728173296287,69.93,2411.2,2411.1,5.03089088]
[1728173296576,69.93,2411.2,2411.1,3.32419586]
[1728173298409,77.7,2411.2,2411.1,3.32419586]
[1728173299043,77.7,2411.2,2411.1,2.7995]
[1728173299238,77.7,2411.2,2411.1,3.67898609]
[1728173299495,77.7,2411.2,2411.1,3.32465012]
[1728173299793,77.7,2411.2,2411.1,3.67898609]
[1728173299939,77.7,2411.2,2411.1,3.32465012]
[1728173300139,77.7,2411.2,2411.1,3.67898609]
[1728173300340,77.7,2411.2,2411.1,3.32465012]
[1728173300575,85.47,2411.2,2411.1,3.67898609]
[1728173300793,85.47,2411.2,2411.1,3.32465012]
[1728173300969,85.47,2411.2,2411.1,3.67898609]
[1728173301166,85.47,2411.2,2411.1,3.32465012]
[1728173301373,85.47,2411.2,2411.1,3.67893183]
[1728173302855,93.24,2411.2,2411.1,3.67893183]
[1728173304677,93.24,2411.2,2411.1,3.67888124]
[1728173304859,93.24,2411.2,2411.1,3.67951557]
[1728173305059,101.01,2411.2,2411.1,3.67951557]
[1728173307278,108.78,2411.2,2411.1,3.67951557]
[1728173309165,116.55,2411.2,2411.1,3.67951557]
[1728173311366,124.32,2411.2,2411.1,3.3246774]
[1728173311570,124.32,2411.2,2411.1,3.67990002]
[1728173313618,132.09,2411.2,2411.1,3.67990002]
[1728173315851,139.86,2411.2,2411.1,3.67990002]
[1728173317800,147.63,2411.2,2411.1,3.67990002]
[1728173318003,147.63,2411.2,2411.1,3.32490187]
[1728173318313,147.63,2411.2,2411.1,3.6801181]
[1728173319344,147.63,2411.2,2411.1,9.26733443]
[1728173320147,155.4,2411.2,2411.1,9.26733443]
[1728173321143,155.4,2411.2,2411.1,8.9121182]
[1728173321402,155.4,2411.2,2411.1,8.9121039]
[1728173321632,155.4,2411.2,2411.1,9.26730071]
[1728173322343,163.17,2411.2,2411.1,9.26730071]
[1728173324451,170.94,2411.2,2411.1,9.26715187]
[1728173326671,178.71,2411.2,2411.1,9.26715187]
[1728173327875,178.71,2411.2,2411.1,7.84032297]
[1728173328362,178.71,2411.2,2411.1,9.26706799]
[1728173328861,186.48,2411.2,2411.1,9.26706799]
[1728173330946,194.25,2411.2,2411.1,8.74190418]
[1728173331125,194.25,2411.2,2411.1,8.38671633]
[1728173331327,194.25,2411.2,2411.1,8.9118447]
[1728173331527,194.25,2411.2,2411.1,9.26705928]
[1728173333123,202.02,2411.2,2411.1,9.26705928]
[1728173335344,209.79,2411.2,2411.1,9.26705928]
[1728173337676,217.56,2411.2,2411.1,8.38671633]
[1728173337831,217.56,2411.2,2411.1,8.91183943]
[1728173338032,217.56,2411.2,2411.1,9.26707062]
[1728173338761,217.56,2411.2,2411.1,9.26708492]
[1728173339667,225.33,2411.2,2411.1,9.26708492]
[1728173340743,225.33,2411.2,2411.1,8.74196182]
[1728173341056,225.33,2411.2,2411.1,9.26712988]
[1728173341943,233.1,2411.2,2411.1,9.26712988]
[1728173343970,233.1,2411.2,2411.1,8.91194358]
[1728173344175,240.87,2411.2,2411.1,9.2672087]
[1728173346375,248.64,2411.2,2411.1,9.2672087]
[1728173347796,248.64,2411.2,2411.1,9.26737237]
[1728173347955,248.64,2411.2,2411.1,9.26738404]
[1728173348667,256.41,2411.2,2411.1,9.26738404]
[1728173350065,256.41,2411.2,2411.1,5.94940404]
[1728173350252,256.41,2411.2,2411.1,2.88066771]
[1728173350449,256.41,2411.2,2411.1,6.19864771]
[1728173350892,264.18,2411.2,2411.1,6.19864771]
[1728173351352,264.18,2411.2,2411.1,5.67325679]
[1728173351553,264.18,2411.2,2411.1,6.19892042]
[1728173352258,264.18,2411.2,2411.1,6.55424747]
[1728173353192,271.95,2411.2,2411.1,6.55424747]
[1728173355182,279.72,2411.2,2411.1,6.55424747]
[1728173355387,279.72,2411.2,2411.1,2.88094036]
[1728173355795,280.535,2411.2,2411.1,2.88094036]
[1728173357281,288.305,2411.2,2411.1,2.88094036]
[1728173358599,288.305,2411.2,2411.1,2.0]
[1728173358806,288.305,2411.2,2411.1,2.52548748]
[1728173358966,288.305,2411.2,2411.1,2.88091359]
[1728173359483,295.26,2411.2,2411.1,2.88091359]
[1728173359661,300.87092751,2411.2,2411.1,2.88091359]
[1728173359870,303.87092751,2411.2,2411.1,2.88091359]
[1728173361494,311.64092751,2411.2,2411.1,2.88091359]
[1728173362423,311.64092751,2411.2,2411.1,2.35542611]
[1728173362574,311.64092751,2411.2,2411.1,2.88045879]
[1728173363883,319.41092751,2411.2,2411.1,2.88045879]
[1728173365717,319.41092751,2411.2,2411.1,2.3553468]
[1728173366052,327.18092751,2411.2,2411.1,2.3553468]
[1728173366316,327.18092751,2411.2,2411.1,2.0]
[1728173366828,327.18092751,2411.2,2411.1,2.35520593]
[1728173368114,334.95092751,2411.2,2411.1,2.35520593]
[1728173368317,333.47285,2411.2,2411.1,2.35520593]
[1728173369118,333.47285,2411.2,2411.1,2.0]
[1728173370197,341.24285,2411.2,2411.1,2.0]
[1728173372304,349.01285,2411.2,2411.1,2.0]
[1728173374419,356.78285,2411.2,2411.1,2.0]
[1728173374654,358.99200877,2411.2,2411.1,2.0]
[1728173376746,366.76200877,2411.2,2411.1,2.0]
[1728173379044,374.53200877,2411.2,2411.1,2.0]
[1728173381161,382.30200877,2411.2,2411.1,2.0]
[1728173383147,390.07200877,2411.2,2411.1,2.0]
[1728173385381,397.84200877,2411.2,2411.1,2.0]
[1728173387451,405.61200877,2411.2,2411.1,2.0]
[1728173389681,413.38200877,2411.2,2411.1,2.0]
[1728173391787,421.15200877,2411.2,2411.1,2.0]
[1728173394071,428.92200877,2411.2,2411.1,2.0]
[1728173396283,436.69200877,2411.2,2411.1,2.0]
[1728173398696,444.46200877,2411.2,2411.1,2.0]
[1728173400916,452.23200877,2411.2,2411.1,2.0]
[1728173402900,0.7726,2411.0,2410.8,2.0]
[1728173403109,6.31826,2410.9,2410.8,2.0]
[1728173422253,6.31826,2410.9,2410.4,0.1195484]
[1728173422254,3.31881,2410.5,2410.4,0.1195484]
[1728173422471,3.0,2410.6,2410.4,1.0008439]
[1728173422673,3.31881,2410.5,2410.4,0.47494041]
[1728173422977,3.31881,2410.5,2410.4,1.00067539]
[1728173424736,3.31881,2410.5,2410.4,0.47493867]
[1728173424966,3.31881,2410.5,2410.4,1.00058847]